bitfinex/quotes_SOLUSD_20250630
["timestamp","ask_amount","ask_price","bid_price","bid_amount"]
[1751300368653,6.34356762,157.64,157.57,26.0]
[1751300368654,30.0,157.62,157.57,26.0]
[1751300368855,30.0,157.62,157.58,26.0]
[1751300369025,30.0,157.62,157.55,6.8359]
[1751300369026,34.93355632,157.64,157.59,12.73106965]
[1751300369434,31.38071851,157.63,157.58,12.73106965]
[1751300369634,31.38071851,157.63,157.57,12.73106965]
[1751300369635,12.73106965,157.62,157.57,12.73106965]
[1751300369839,8.20809652,157.61,157.55,0.2]
[1751300370038,6.3455803,157.59,157.55,8.40809652]
[1751300371959,6.3455803,157.59,157.55,0.2]
[1751300372336,6.3455803,157.59,157.55,8.40809652]
[1751300372737,6.3455803,157.59,157.56,8.20809652]
[1751300373234,6.34517766,157.6,157.56,8.20809652]
[1751300373435,22.20812182,157.6,157.56,8.20809652]
[1751300373636,22.20812182,157.6,157.55,0.2]
[1751300373837,18.64964886,157.59,157.55,0.2]
[1751300374155,8.20809652,157.58,157.55,0.2]
[1751300374662,6.34437254,157.62,157.57,8.20809652]
[1751300374851,6.34437254,157.62,157.61,8.20809652]
[1751300375046,6.34437254,157.62,157.56,26.63467885]
[1751300375462,6.34356762,157.64,157.61,8.20809652]
[1751300375645,6.34356762,157.64,157.62,8.20809652]
[1751300376041,6.34356762,157.64,157.63,8.20809652]
[1751300376247,6.34356762,157.64,157.58,26.0]
[1751300376442,6.34356762,157.64,157.63,8.20809652]
[1751300378064,6.34356762,157.64,157.62,8.20809652]
[1751300378256,6.84356762,157.64,157.62,8.20809652]
[1751300378455,0.5,157.64,157.63,8.20809652]
[1751300379049,6.34301817,157.66,157.63,8.20809652]
[1751300379363,6.34301817,157.66,157.65,8.20809652]
[1751300379942,6.34236062,157.67,157.65,8.20809652]
[1751300380270,22.19826218,157.67,157.64,8.20809652]
[1751300380644,22.19826218,157.67,157.6,0.28432314]
[1751300380840,22.19826218,157.67,157.65,8.20809652]
[1751300381045,6.34236062,157.67,157.66,8.20809652]
[1751300381563,6.34236062,157.67,157.65,8.20809652]
[1751300381761,6.34236062,157.67,157.66,8.20809652]
[1751300383475,6.54210726,157.68,157.66,8.20809652]
[1751300383649,6.54210726,157.68,157.67,8.20809652]
[1751300384454,6.54210726,157.68,157.66,8.20809652]
[1751300385158,6.54210726,157.68,157.65,8.20809652]
[1751300385771,30.60509977,157.68,157.62,26.0]
[1751300386076,22.39700325,157.68,157.64,8.20809652]
[1751300386447,22.39700325,157.68,157.62,26.0]
[1751300386766,30.60509977,157.68,157.63,8.20809652]
[1751300387145,30.60509977,157.68,157.62,26.0]
[1751300387380,22.39700325,157.68,157.64,8.20809652]
[1751300387674,0.2,157.68,157.67,8.20809652]
[1751300389670,0.2,157.68,157.66,8.20809652]
[1751300389671,6.54203345,157.68,157.66,8.20809652]
[1751300390170,6.54203345,157.68,157.59,32.18984624]
[1751300390171,30.60502596,157.68,157.63,8.20809652]
[1751300390370,8.20809652,157.66,157.61,8.20809652]
[1751300391463,6.3427629,157.66,157.62,8.20809652]
[1751300391667,22.19967016,157.66,157.62,8.20809652]
[1751300392874,30.40776668,157.66,157.61,8.20809652]
[1751300393254,22.19967016,157.66,157.61,8.20809652]
[1751300393465,30.40776668,157.66,157.61,8.20809652]
[1751300394159,30.40776668,157.66,157.59,26.0]
[1751300394362,22.19967016,157.66,157.62,8.20809652]
[1751300394563,30.40776668,157.66,157.61,8.20809652]
[1751300395257,26.85774538,157.65,157.6,8.20809652]
[1751300395981,18.64964886,157.65,157.59,8.30809652]
[1751300396357,8.20809652,157.63,157.59,0.1]
[1751300396784,22.20530389,157.62,157.59,0.1]
[1751300397780,30.41340041,157.62,157.59,0.1]
[1751300397984,8.20809652,157.61,157.59,0.1]
[1751300398283,22.20530389,157.62,157.59,0.1]
[1751300398284,30.41340041,157.62,157.59,0.1]
[1751300399367,26.85774538,157.61,157.59,0.1]
[1751300399570,26.85774538,157.6,157.59,0.1]
[1751300400363,27.14206852,157.6,157.59,0.1]
[1751300400693,18.64964886,157.6,157.59,0.1]
[1751300400853,6.34517766,157.6,157.59,0.1]
[1751300401484,6.84517766,157.6,157.59,0.1]
[1751300401779,6.84517766,157.6,157.59,8.30809652]
[1751300401970,6.84517766,157.6,157.59,0.1]
[1751300402683,0.5,157.6,157.59,8.30809652]
[1751300403071,6.84517766,157.6,157.59,0.1]
[1751300404783,6.84517766,157.6,157.59,8.30809652]
[1751300404962,0.5,157.6,157.59,8.30809652]
[1751300406599,0.5,157.6,157.59,27.24206852]
[1751300406765,6.89709049,157.67,157.62,26.0]
[1751300406965,6.89709049,157.67,157.66,8.20809652]
[1751300407168,36.89709049,157.67,157.66,8.20809652]
[1751300407882,6.89709049,157.67,157.66,8.20809652]
[1751300408998,13.23945111,157.67,157.66,8.20809652]
[1751300409159,6.89709049,157.67,157.66,8.20809652]
[1751300409361,13.23945111,157.67,157.66,8.20809652]
[1751300409857,13.23945111,157.67,157.62,26.0]
[1751300410166,13.23945111,157.67,157.65,8.20809652]
[1751300410365,8.20809652,157.66,157.59,27.8]
[1751300410562,8.20809652,157.66,157.59,0.1]
[1751300410563,8.20809652,157.62,157.59,0.1]
[1751300410770,6.34477507,157.61,157.59,0.1]
[1751300410970,6.34477507,157.61,157.59,8.30809652]
[1751300411180,6.34477507,157.61,157.6,8.20809652]
[1751300411362,6.34477507,157.61,157.59,0.1]
[1751300411684,6.34477507,157.61,157.59,8.30809652]
[1751300412476,0.2,157.71,157.65,18.933972]
[1751300412782,0.2,157.71,157.67,34.49241966]
[1751300412999,6.54102754,157.71,157.67,8.20809652]
[1751300413488,0.2,157.71,157.67,8.20809652]
[1751300413690,0.2,157.71,157.69,26.0]
[1751300413984,0.2,157.71,157.7,13.00570249]
[1751300414186,0.2,157.71,157.7,8.20809652]
[1751300414775,0.2,157.71,157.69,53.7]
[1751300415087,0.2,157.71,157.7,8.20809652]
[1751300416191,6.54075201,157.71,157.69,8.20809652]
[1751300416676,6.54075201,157.71,157.7,8.20809652]
[1751300418181,18.64964886,157.7,157.66,8.20809652]
[1751300418380,26.85774538,157.7,157.61,12.24522303]
[1751300418584,26.85774538,157.7,157.65,8.20809652]
[1751300418788,8.20809652,157.69,157.65,8.20809652]
[1751300418983,8.20809652,157.69,157.64,8.20809652]
[1751300419186,22.19685438,157.68,157.64,8.20809652]
[1751300420069,22.19685438,157.68,157.62,26.0]
[1751300420070,26.85774538,157.67,157.62,8.20809652]
[1751300420270,26.85774538,157.67,157.63,8.20809652]
[1751300421096,6.3427629,157.66,157.63,8.20809652]
[1751300421596,33.42262524,157.71,157.62,27.68]
[1751300421597,6.34115409,157.7,157.62,27.68]
[1751300421899,6.34115409,157.7,157.62,34.02429602]
[1751300422098,6.34115409,157.7,157.68,8.20809652]
[1751300423372,6.34115409,157.7,157.69,8.20809652]
[1751300423577,0.2,157.71,157.69,8.20809652]
[1751300423796,6.54079815,157.71,157.7,8.20809652]
[1751300425698,22.39267818,157.71,157.67,8.20809652]
[1751300425931,6.54079815,157.71,157.68,8.20809652]
[1751300426275,22.39267818,157.71,157.68,8.20809652]
[1751300426598,22.39267818,157.71,157.64,26.0]
[1751300426599,0.2,157.71,157.7,34.20809652]
[1751300427174,0.2,157.71,157.7,8.20809652]
[1751300427495,6.54075201,157.71,157.7,8.20809652]
[1751300429569,6.54075201,157.71,157.69,8.20809652]
[1751300429774,6.54075201,157.71,157.68,8.30809652]
[1751300429975,6.54075201,157.71,157.69,8.20809652]
[1751300430178,6.54075201,157.71,157.68,0.1]
[1751300430600,6.54075201,157.71,157.68,8.30809652]
[1751300430808,22.39263204,157.71,157.68,0.1]
[1751300431187,0.2,157.71,157.69,60.02155621]
[1751300431390,8.17822126,157.75,157.73,26.0]
[1751300431589,8.17822126,157.75,157.74,8.20809652]
[1751300432197,38.17822126,157.75,157.74,8.20809652]
[1751300432988,8.17822126,157.75,157.73,26.0]
[1751300433308,8.17822126,157.75,157.74,8.20809652]
[1751300434889,8.17822126,157.75,157.73,26.0]
[1751300435084,8.17822126,157.75,157.74,8.20809652]
[1751300435710,0.2,157.75,157.74,8.20809652]
[1751300436601,6.53914421,157.75,157.73,53.8]
[1751300436817,0.2,157.75,157.74,8.20809652]
[1751300437181,6.53914421,157.75,157.74,8.20809652]
[1751300438393,6.53914421,157.75,157.73,8.20809652]
[1751300438598,6.53914421,157.75,157.69,26.0]
[1751300438919,22.38700474,157.75,157.72,8.20809652]
[1751300439294,22.38700474,157.75,157.71,8.20809652]
[1751300440413,18.64964886,157.72,157.68,8.30809652]
[1751300440712,8.20809652,157.72,157.68,8.30809652]
[1751300440945,8.20809652,157.71,157.68,0.1]
[1751300441220,8.20809652,157.7,157.68,0.1]
[1751300441389,6.34155621,157.69,157.68,0.1]
[1751300441907,33.19930159,157.69,157.68,0.1]
[1751300442417,33.48362473,157.69,157.68,0.1]
[1751300442586,65.02892473,157.69,157.68,0.1]
[1751300442786,0.28432314,157.67,157.61,0.1]
[1751300442991,8.20809652,157.64,157.61,0.1]
[1751300443188,18.933972,157.67,157.61,0.1]
[1751300443405,6.34397005,157.63,157.61,0.1]
[1751300444807,6.34397005,157.63,157.61,8.30809652]
[1751300445006,6.34397005,157.63,157.62,8.20809652]
[1751300445713,6.34316523,157.65,157.62,8.20809652]
[1751300445925,6.34316523,157.65,157.61,0.1]
[1751300445926,26.85774538,157.64,157.61,0.1]
[1751300446122,18.64964886,157.62,157.61,0.1]
[1751300446307,8.20809652,157.62,157.61,0.1]
[1751300447317,13.04574383,157.62,157.61,0.1]
[1751300447521,94.32408837,157.62,157.61,0.1]
[1751300447822,100.59108837,157.62,157.61,0.1]
[1751300448398,90.45201972,157.62,157.59,0.1]
[1751300448598,53.14206852,157.6,157.59,0.1]
[1751300448806,89.37029066,157.6,157.59,0.1]
[1751300449203,81.16219414,157.6,157.59,0.1]
[1751300449405,89.37029066,157.6,157.59,0.1]
[1751300449602,95.71546832,157.6,157.59,0.1]
[1751300449818,44.933972,157.56,157.55,0.2]
[1751300450000,53.14206852,157.56,157.55,0.2]
[1751300450900,83.14206852,157.56,157.55,0.2]
[1751300451713,89.48885704,157.56,157.55,0.2]
[1751300452100,80.99643738,157.56,157.55,0.2]
[1751300452321,89.2045339,157.56,157.55,0.2]
[1751300453031,80.99643738,157.56,157.55,0.2]
[1751300453533,50.99643738,157.56,157.55,0.2]
[1751300454897,32.34678852,157.56,157.55,0.2]
[1751300455129,6.34678852,157.56,157.55,8.40809652]
[1751300455697,6.34638573,157.57,157.55,8.40809652]
[1751300455916,6.34638573,157.57,157.55,0.2]
[1751300456808,14.55448225,157.57,157.55,0.2]
[1751300457209,18.64964886,157.56,157.55,0.2]
[1751300457745,33.2045339,157.56,157.55,0.2]
[1751300458340,63.2045339,157.56,157.55,0.2]
[1751300459024,89.48885704,157.56,157.55,0.2]
[1751300459547,89.2045339,157.56,157.55,0.2]
[1751300459830,80.99643738,157.56,157.55,0.2]
[1751300460419,89.2045339,157.56,157.55,0.2]
[1751300460810,54.99643738,157.56,157.55,0.2]
[1751300461326,6.34678852,157.56,157.55,0.2]
[1751300461500,6.34678852,157.56,157.55,8.40809652]
[1751300461707,6.34646991,157.57,157.55,0.2]
[1751300463223,6.34646991,157.57,157.55,8.40809652]
[1751300463803,6.34646991,157.57,157.55,0.2]
[1751300464419,6.34646991,157.57,157.55,8.40809652]
[1751300464616,6.34646991,157.57,157.55,0.2]
[1751300465638,12.50849836,157.58,157.55,0.2]
[1751300466125,6.16241725,157.58,157.57,8.20809652]
[1751300468343,6.34480105,157.61,157.57,8.20809652]
[1751300468542,6.34480105,157.61,157.56,6.34678347]
[1751300468745,6.34480105,157.61,157.6,8.20809652]
[1751300469541,6.34397005,157.63,157.6,8.20809652]
[1751300469936,6.34397005,157.63,157.61,8.20809652]
[1751300470643,6.34397005,157.63,157.56,32.3466533]
[1751300470818,6.34397005,157.63,157.61,8.20809652]
[1751300471020,6.34397005,157.63,157.56,32.3466533]
[1751300471021,6.34397005,157.63,157.56,26.0]
[1751300471223,6.34397005,157.63,157.59,8.20809652]
[1751300471532,22.20261759,157.64,157.6,8.20809652]
[1751300472126,22.20261759,157.64,157.61,8.20809652]
[1751300472557,6.34356762,157.64,157.62,8.20809652]
[1751300472847,6.34356762,157.64,157.61,8.20809652]
[1751300473051,0.2,157.68,157.63,34.20809652]
[1751300473219,0.2,157.68,157.67,8.20809652]
[1751300473726,0.2,157.68,157.64,32.34354908]
[1751300473918,0.2,157.68,157.67,8.20809652]
[1751300474245,0.2,157.75,157.7,26.0]
[1751300474426,0.2,157.75,157.71,0.28432314]
[1751300474628,0.2,157.75,157.74,8.20809652]
[1751300475855,0.2,157.78,157.77,26.0]
[1751300476028,0.2,157.78,157.77,34.49241966]
[1751300477648,7.35111858,157.81,157.78,0.28432314]
[1751300477831,7.35111858,157.81,157.8,8.20809652]
[1751300478557,7.35111858,157.81,157.8,16.41619304]
[1751300478754,7.35111858,157.81,157.8,16.70051618]
[1751300479230,7.35111858,157.81,157.8,8.49241966]
[1751300479430,7.35111858,157.81,157.8,8.20809652]
[1751300479655,13.68785262,157.81,157.79,35.88809652]
[1751300479962,7.35111858,157.81,157.8,8.20809652]
[1751300480264,13.68785262,157.81,157.8,8.20809652]
[1751300482440,7.35111858,157.81,157.8,8.20809652]
[1751300483153,7.35111858,157.81,157.8,36.15241966]
[1751300483934,7.35111858,157.81,157.8,44.36051618]
[1751300484855,7.35111858,157.81,157.8,36.15241966]
[1751300485246,7.35111858,157.81,157.8,44.36051618]
[1751300485835,7.35111858,157.81,157.8,35.86809652]
[1751300487432,6.53636874,157.82,157.8,35.86809652]
[1751300487663,6.53636874,157.82,157.81,8.20809652]
[1751300488248,6.53636874,157.82,157.8,8.20809652]
[1751300488452,6.53636874,157.82,157.79,8.20809652]
[1751300488867,22.37720006,157.82,157.73,6.1562]
[1751300489038,22.37720006,157.82,157.78,8.20809652]
[1751300489243,22.37720006,157.82,157.81,34.35025809]
[1751300489244,0.2,157.82,157.81,34.35025809]
[1751300489461,0.2,157.82,157.81,26.28432314]
[1751300489769,0.2,157.82,157.81,34.49241966]
[1751300491464,0.2,157.82,157.81,8.20809652]
[1751300492052,6.53633253,157.82,157.77,26.0]
[1751300492263,6.53633253,157.82,157.8,8.20809652]
[1751300492568,6.53633253,157.82,157.81,8.20809652]
[1751300493966,0.2,157.82,157.81,8.20809652]
[1751300495065,0.2,157.82,157.79,0.28432314]
[1751300495369,0.2,157.82,157.81,8.20809652]
[1751300496342,6.53633253,157.82,157.77,0.28432314]
[1751300496551,22.37716385,157.82,157.73,24.80584886]
[1751300496751,22.37716385,157.82,157.76,8.20809652]
[1751300496752,8.20809652,157.81,157.76,8.20809652]
[1751300496954,8.20809652,157.8,157.76,8.20809652]
[1751300497453,8.20809652,157.79,157.75,8.20809652]
[1751300497866,8.20809652,157.8,157.75,8.20809652]
[1751300498071,22.18138031,157.79,157.75,8.20809652]
[1751300498675,22.18138031,157.79,157.72,27.64]
[1751300498676,22.18138031,157.79,157.76,8.20809652]
[1751300499662,6.33753723,157.79,157.78,8.20809652]
[1751300499864,36.33753723,157.79,157.78,8.20809652]
[1751300500061,22.17856915,157.81,157.78,8.20809652]
[1751300500353,18.64964886,157.8,157.73,26.0]
[1751300500550,26.85774538,157.8,157.75,8.20809652]
[1751300501013,8.20809652,157.78,157.73,8.20809652]
[1751300502258,22.18419217,157.77,157.73,8.20809652]
[1751300502573,26.85774538,157.76,157.71,8.40809652]
[1751300503680,7.8167,157.75,157.71,8.40809652]
[1751300504155,16.02479652,157.75,157.71,0.2]
[1751300504360,22.1884113,157.74,157.71,0.2]
[1751300504873,18.64964886,157.73,157.71,0.2]
[1751300505052,26.85774538,157.73,157.71,0.2]
[1751300505257,26.85774538,157.72,157.71,0.2]
[1751300505778,18.64964886,157.72,157.71,0.2]
[1751300506280,33.19809536,157.72,157.71,0.2]
[1751300509370,6.34034998,157.72,157.71,8.40809652]
[1751300509974,6.34034998,157.72,157.71,0.2]
[1751300510676,22.1884113,157.74,157.71,0.2]
[1751300511185,22.1884113,157.74,157.71,8.40809652]
[1751300511586,22.1884113,157.74,157.71,0.2]
[1751300512687,33.4824185,157.72,157.71,0.2]
[1751300513081,33.4824185,157.72,157.67,0.2]
[1751300513082,18.933972,157.71,157.67,0.2]
[1751300513262,8.20809652,157.68,157.67,0.2]
[1751300513673,8.20809652,157.69,157.67,0.2]
[1751300513968,8.20809652,157.68,157.67,0.2]
[1751300514580,18.933972,157.71,157.67,0.2]
[1751300514782,26.85774538,157.69,157.67,0.2]
[1751300514974,8.20809652,157.68,157.67,0.2]
[1751300515668,27.14206852,157.68,157.67,0.2]
[1751300515866,60.78016852,157.68,157.67,0.2]
[1751300516091,90.78016852,157.68,157.67,0.2]
[1751300516579,44.933972,157.65,157.64,0.2]
[1751300516787,53.14206852,157.65,157.64,0.2]
[1751300517095,89.48523375,157.65,157.64,0.2]
[1751300518796,36.34316523,157.65,157.64,0.2]
[1751300519005,63.48523375,157.65,157.64,0.2]
[1751300522889,91.14523375,157.65,157.64,0.2]
[1751300524106,63.48523375,157.65,157.64,0.2]
[1751300524477,101.14523375,157.65,157.64,0.2]
[1751300524780,63.48523375,157.65,157.64,0.2]
[1751300525909,91.14523375,157.65,157.64,0.2]
[1751300526279,44.64964886,157.61,157.6,0.1]
[1751300526478,83.14206852,157.61,157.6,0.1]
[1751300526683,82.85774538,157.61,157.6,0.1]
[1751300527197,89.20252045,157.61,157.6,0.1]
[1751300528997,80.99442393,157.61,157.6,0.1]
[1751300529184,89.20252045,157.61,157.6,0.1]
[1751300530599,89.48684359,157.61,157.6,0.1]
[1751300531386,81.27874707,157.61,157.6,0.1]
[1751300531708,89.48684359,157.61,157.6,0.1]
[1751300532210,80.99442393,157.61,157.6,0.1]
[1751300532400,89.20252045,157.61,157.6,0.1]
[1751300533790,36.34477507,157.61,157.6,0.1]
[1751300536879,30.0,157.61,157.6,8.30809652]
[1751300537079,30.0,157.61,157.6,23.14569384]
[1751300537388,30.0,157.61,157.6,16.80051618]
[1751300537594,6.17816225,157.63,157.6,8.30809652]
[1751300537811,6.17816225,157.63,157.62,8.20809652]
[1751300538694,12.5221323,157.63,157.62,8.20809652]
[1751300538892,12.5221323,157.63,157.6,0.1]
[1751300539098,28.38205744,157.63,157.6,0.1]
[1751300540203,28.38205744,157.63,157.6,8.30809652]
[1751300541708,28.38205744,157.63,157.6,0.1]
[1751300541893,28.38205744,157.63,157.6,8.30809652]
[1751300544614,28.38205744,157.63,157.6,0.1]
[1751300544918,28.38205744,157.63,157.6,8.30809652]
[1751300545326,8.20809652,157.62,157.6,0.1]
[1751300545492,8.20809652,157.61,157.6,0.1]
[1751300545698,36.59015396,157.63,157.6,0.1]
[1751300546824,8.20809652,157.62,157.6,0.1]
[1751300547117,6.34477507,157.61,157.6,0.1]
[1751300548914,6.34437254,157.62,157.6,0.1]
[1751300549123,6.34437254,157.62,157.6,8.30809652]
[1751300549499,6.34437254,157.62,157.6,0.1]
[1751300551221,14.55246906,157.62,157.6,0.1]
[1751300552427,6.34437254,157.62,157.6,0.1]
[1751300552625,20.28364886,157.61,157.6,0.1]
[1751300552824,84.49174538,157.61,157.6,0.1]
[1751300553000,82.62842393,157.61,157.6,0.1]
[1751300553202,62.34477507,157.61,157.6,0.1]
[1751300553405,70.55287159,157.61,157.6,0.1]
[1751300553930,63.48684359,157.61,157.6,0.1]
[1751300555329,63.20252045,157.61,157.6,0.1]
[1751300555505,89.20252045,157.61,157.6,0.1]
[1751300555704,62.34477507,157.61,157.6,0.1]
[1751300556013,70.55287159,157.61,157.6,0.1]
[1751300562936,89.20252045,157.61,157.6,0.1]
[1751300565716,70.55287159,157.61,157.6,0.1]
[1751300566224,70.55287159,157.61,157.55,0.2]
[1751300566225,26.0,157.56,157.55,0.2]
[1751300566431,34.20809652,157.56,157.55,0.2]
[1751300566736,8.20809652,157.56,157.55,0.2]
[1751300567110,26.85774538,157.56,157.55,0.2]
[1751300567311,57.14206852,157.56,157.55,0.2]
[1751300567825,62.1224358,157.56,157.55,0.2]
[1751300568120,68.46922432,157.56,157.55,0.2]
[1751300568315,63.48885704,157.56,157.55,0.2]
[1751300571127,44.933972,157.55,157.54,0.1]
[1751300571317,83.14206852,157.55,157.54,0.1]
[1751300572034,57.14206852,157.55,157.53,0.1]
[1751300572237,89.48966278,157.54,157.53,0.1]
[1751300572538,96.08966278,157.54,157.53,0.1]
[1751300573047,102.74501934,157.54,157.53,0.1]
[1751300573614,102.74501934,157.54,157.42,1.5589]
[1751300573615,26.0,157.51,157.42,1.5589]
[1751300573825,30.0,157.51,157.49,8.20809652]
[1751300574031,37.08003299,157.54,157.5,8.20809652]
[1751300574241,37.08003299,157.54,157.49,8.20809652]
[1751300574741,37.08003299,157.54,157.5,8.20809652]
[1751300575233,37.08003299,157.54,157.45,32.63545456]
[1751300575534,30.42467643,157.54,157.5,8.20809652]
[1751300575745,30.42467643,157.54,157.47,0.28432314]
[1751300575919,30.42467643,157.54,157.5,8.20809652]
[1751300576119,26.0,157.5,157.41,6.35283654]
[1751300576331,26.0,157.5,157.44,8.20809652]
[1751300576816,26.0,157.5,157.4,5.62702303]
[1751300577016,26.0,157.5,157.44,8.20809652]
[1751300577328,6.35041595,157.47,157.44,14.35779652]
[1751300577527,6.35041595,157.47,157.45,8.20809652]
[1751300579222,8.20809652,157.51,157.46,8.20809652]
[1751300579418,24.07972034,157.52,157.47,8.20809652]
[1751300579612,18.65547688,157.68,157.5,8.20809652]
[1751300579613,15.86889791,157.55,157.5,8.20809652]
[1751300579822,15.86889791,157.55,157.52,8.20809652]
[1751300580019,15.86889791,157.55,157.47,26.28432314]
[1751300580229,15.86889791,157.55,157.52,8.20809652]
[1751300580542,40.74867168,157.57,157.54,8.20809652]
[1751300580543,6.34678852,157.56,157.54,8.20809652]
[1751300580851,30.0,157.55,157.52,6.0185]
[1751300581031,6.34678852,157.56,157.52,6.0185]
[1751300581226,6.34678852,157.56,157.53,8.20809652]
[1751300581430,15.86626585,157.57,157.54,8.20809652]
[1751300581624,6.3455803,157.59,157.56,8.20809652]
[1751300581824,6.3455803,157.59,157.58,8.20809652]
[1751300582024,6.3455803,157.59,157.57,8.20809652]
[1751300582248,8.20809652,157.58,157.52,7.6052]
[1751300582554,8.20809652,157.55,157.5,8.20809652]
[1751300582743,18.64964886,157.58,157.5,8.20809652]
[1751300582950,8.20809652,157.55,157.5,8.20809652]
[1751300583525,6.34759426,157.54,157.5,8.20809652]
[1751300583730,8.20809652,157.53,157.48,7.6052]
[1751300583949,8.20809652,157.53,157.49,12.8480871]
[1751300584159,8.20809652,157.53,157.49,8.20809652]
[1751300584645,8.20809652,157.53,157.48,15.81329652]
[1751300584850,8.20809652,157.52,157.45,0.38432314]
[1751300585028,22.21657991,157.54,157.46,4.64312876]
[1751300585029,8.20809652,157.51,157.46,4.64312876]
[1751300585228,8.20809652,157.51,157.47,4.64312876]
[1751300585432,6.34920634,157.5,157.47,4.64312876]
[1751300585726,6.34920634,157.5,157.46,8.20809652]
[1751300586158,6.34920634,157.5,157.45,0.1]
[1751300586337,6.34920634,157.5,157.46,4.64306367]
[1751300586532,6.34920634,157.5,157.45,8.59241966]
[1751300586533,14.55730286,157.5,157.45,8.59241966]
[1751300586747,30.43031873,157.5,157.46,4.64417045]
[1751300586957,30.43031873,157.5,157.45,0.1]
[1751300586958,8.20809652,157.47,157.45,0.1]
[1751300587253,22.22222221,157.5,157.45,0.1]
[1751300587461,30.43314097,157.48,157.45,0.1]
[1751300587638,8.20809652,157.46,157.45,0.1]
[1751300589354,26.85774538,157.46,157.45,0.1]
[1751300589558,33.20856463,157.46,157.45,0.1]
[1751300589849,89.20856463,157.46,157.45,0.1]
[1751300591453,63.49288777,157.46,157.45,0.1]
[1751300591666,20.16794886,157.44,157.43,0.1]
[1751300591841,18.64964886,157.4,157.29,6.5952]
[1751300592039,8.20809652,157.35,157.29,6.5952]
[1751300592238,8.20809652,157.35,157.3,8.20809652]
[1751300592436,8.20809652,157.34,157.29,6.5952]
[1751300592646,3.14171436,157.39,157.24,13.1752]
[1751300592647,57.64874886,157.37,157.24,13.1752]
[1751300592947,52.85774538,157.34,157.24,6.5952]
[1751300593360,26.85774538,157.34,157.24,14.80329652]
[1751300593574,26.85774538,157.34,157.19,27.44]
[1751300593575,26.0,157.31,157.19,5.62702303]
[1751300593860,8.20809652,157.29,157.25,8.20809652]
[1751300594054,8.20809652,157.29,157.2,8.20809652]
[1751300594257,8.20809652,157.27,157.22,8.20809652]
[1751300594442,8.20809652,157.27,157.18,6.5952]
[1751300594443,8.20809652,157.28,157.23,8.20809652]
[1751300594649,26.0,157.31,157.2,8.20809652]
[1751300594851,8.20809652,157.28,157.21,4.65729679]
[1751300595063,8.20809652,157.28,157.18,18.64964886]
[1751300595064,8.20809652,157.27,157.22,8.20809652]
[1751300595254,6.77481541,157.29,157.23,8.20809652]
[1751300595457,6.77481541,157.29,157.25,8.20809652]
[1751300595752,6.35808748,157.28,157.24,8.20809652]
[1751300595949,26.0,157.33,157.27,8.20809652]
[1751300596148,36.35572944,157.34,157.32,8.20809652]
[1751300596347,30.0,157.33,157.32,8.20809652]
[1751300596553,30.0,157.33,157.28,0.28432314]
[1751300596761,30.0,157.33,157.31,8.20809652]
[1751300596958,30.0,157.33,157.32,8.20809652]
[1751300597164,6.35572944,157.34,157.32,8.20809652]
[1751300597474,6.35525897,157.35,157.33,8.20809652]
[1751300597770,6.35525897,157.35,157.27,8.20809652]
[1751300597771,0.5,157.33,157.27,8.20809652]
[1751300597980,8.20809652,157.32,157.27,8.20809652]
[1751300598270,0.5,157.33,157.26,0.28432314]
[1751300598271,0.5,157.33,157.26,8.20809652]
[1751300598458,0.5,157.33,157.23,32.1845]
[1751300598459,8.20809652,157.32,157.27,8.20809652]
[1751300598771,8.20809652,157.31,157.26,8.20809652]
[1751300599269,6.35727908,157.3,157.26,8.20809652]
[1751300599577,14.5653756,157.3,157.25,0.14216157]
[1751300599869,14.5653756,157.3,157.26,0.14216157]
[1751300600065,30.45857331,157.3,157.26,0.14216157]
[1751300600241,22.25047679,157.3,157.26,0.14216157]
[1751300600448,6.35727908,157.3,157.27,8.20809652]
[1751300600674,6.35727908,157.3,157.28,8.20809652]
[1751300600854,6.35727908,157.3,157.27,0.28432314]
[1751300600855,14.5653756,157.3,157.27,0.28432314]
[1751300601060,8.20809652,157.28,157.23,40.39259652]
[1751300601264,6.35849176,157.27,157.23,8.20809652]
[1751300601574,8.20809652,157.25,157.2,8.20809652]
[1751300601757,8.20809652,157.25,157.19,26.0]
[1751300601951,8.20809652,157.25,157.2,8.20809652]
[1751300602145,22.25472117,157.27,157.2,8.20809652]